[Event "Titled Tuesday Blitz August 09 Early 2022"]
[White "Bellissimo, Joseph F."]
[Black "Kilic, Eray"]
[WhiteFideId "2609843"]
[BlackFideId "44517173"]
[WhiteElo "2061"]
[BlackElo "1776"]
[Result "0-1"]
[Round "01"]
[TimeControl "180+1"]
[Date "2022.08.09"]
[WhiteClock "0:00:10"]
[BlackClock "0:00:35"]

1. e4 {[%clk 0:03:00]}  e5 {[%clk 0:03:00]} 2. Nf3 {[%clk 0:03:00]}  d5 {[%clk 0:03:00]} 3. Nxe5 {[%clk 0:02:59]}  Bd6 {[%clk 0:03:00]} 4. d4 {[%clk 0:02:58]}  dxe4 {[%clk 0:03:00]} 5. Nc3 {[%clk 0:02:44]}  Bxe5 {[%clk 0:02:55]} 6. dxe5 {[%clk 0:02:44]}  Qxd1+ {[%clk 0:02:56]} 7. Nxd1 {[%clk 0:02:44]}  Nc6 {[%clk 0:02:56]} 8. Nc3 {[%clk 0:02:43]}  Bf5 {[%clk 0:02:55]} 9. Bb5 {[%clk 0:02:41]}  Ne7 {[%clk 0:02:55]} 10. Bg5 {[%clk 0:02:39]}  a6 {[%clk 0:02:45]} 11. Bxe7 {[%clk 0:02:37]}  axb5 {[%clk 0:02:44]} 12. Bh4 {[%clk 0:02:18]}  b4 {[%clk 0:02:21]} 13. Nd5 {[%clk 0:02:17]}  Rc8 {[%clk 0:02:15]} 14. O-O-O {[%clk 0:02:17]}  O-O {[%clk 0:02:15]} 15. f4 {[%clk 0:01:54]}  exf3 {[%clk 0:02:08]} 16. gxf3 {[%clk 0:01:54]}  Ra8 {[%clk 0:01:51]} 17. Kb1 {[%clk 0:01:43]}  Be6 {[%clk 0:01:42]} 18. f4 {[%clk 0:01:35]}  Ra5 {[%clk 0:01:40]} 19. Ne7+ {[%clk 0:01:14]}  Nxe7 {[%clk 0:01:39]} 20. Bxe7 {[%clk 0:01:13]}  Rfa8 {[%clk 0:01:34]} 21. a3 {[%clk 0:01:08]}  c5 {[%clk 0:01:34]} 22. Rhf1 {[%clk 0:00:41]}  bxa3 {[%clk 0:01:26]} 23. f5 {[%clk 0:00:40]}  Bc4 {[%clk 0:01:16]} 24. Rf4 {[%clk 0:00:40]}  axb2 {[%clk 0:01:08]} 25. Kxb2 {[%clk 0:00:36]}  Ra2+ {[%clk 0:01:07]} 26. Kc1 {[%clk 0:00:30]}  b5 {[%clk 0:01:04]} 27. Bxc5 {[%clk 0:00:22]}  h6 {[%clk 0:00:58]} 28. h4 {[%clk 0:00:19]}  Kh7 {[%clk 0:00:55]} 29. Kd2 {[%clk 0:00:17]}  Rd8+ {[%clk 0:00:53]} 30. Bd6 {[%clk 0:00:17]}  f6 {[%clk 0:00:54]} 31. Ke1 {[%clk 0:00:12]}  fxe5 {[%clk 0:00:53]} 32. Bxe5 {[%clk 0:00:09]}  Re8 {[%clk 0:00:50]} 33. Re4 {[%clk 0:00:09]}  Re7 {[%clk 0:00:46]} 34. Rd8 {[%clk 0:00:08]}  Rxc2 {[%clk 0:00:44]} 35. h5 {[%clk 0:00:06]}  Re2+ {[%clk 0:00:38]} 36. Rxe2 {[%clk 0:00:06]}  Bxe2 {[%clk 0:00:39]} 37. Kxe2 {[%clk 0:00:07]}  Rxe5+ {[%clk 0:00:39]} 38. Kf3 {[%clk 0:00:07]}  Rxf5+ {[%clk 0:00:40]} 39. Kg4 {[%clk 0:00:08]}  Rg5+ {[%clk 0:00:41]} 40. Kh4 {[%clk 0:00:09]}  Rc5 {[%clk 0:00:40]} 41. Rb8 {[%clk 0:00:09]}  Rc4+ {[%clk 0:00:40]} 42. Kh3 {[%clk 0:00:10]}  b4 {[%clk 0:00:41]} 43. Rb7 {[%clk 0:00:09]}  Kg8 {[%clk 0:00:40]} 44. Kg3 {[%clk 0:00:09]}  Kf8 {[%clk 0:00:40]} 45. Kh3 {[%clk 0:00:10]}  Rc3+ {[%clk 0:00:40]} 46. Kg4 {[%clk 0:00:10]}  b3 {[%clk 0:00:40]} 47. Kf5 {[%clk 0:00:10]}  Rc5+ {[%clk 0:00:41]} 48. Kg6 {[%clk 0:00:11]}  Rg5+ {[%clk 0:00:41]} 49. Kh7 {[%clk 0:00:11]}  Rg3 {[%clk 0:00:39]} 50. Kh8 {[%clk 0:00:09]}  Ke8 {[%clk 0:00:31]} 51. Kh7 {[%clk 0:00:08]}  Kd8 {[%clk 0:00:31]} 52. Kg8 {[%clk 0:00:06]}  Kc8 {[%clk 0:00:31]} 53. Rb4 {[%clk 0:00:06]}  Kc7 {[%clk 0:00:31]} 54. Kf7 {[%clk 0:00:06]}  Kc6 {[%clk 0:00:31]} 55. Rb8 {[%clk 0:00:06]}  Kc5 {[%clk 0:00:31]} 56. Kg8 {[%clk 0:00:07]}  Kc4 {[%clk 0:00:31]} 57. Kh7 {[%clk 0:00:07]}  Kc3 {[%clk 0:00:31]} 58. Rc8+ {[%clk 0:00:08]}  Kb2 {[%clk 0:00:32]} 59. Rb8 {[%clk 0:00:08]}  Kc2 {[%clk 0:00:31]} 60. Rc8+ {[%clk 0:00:08]}  Kb1 {[%clk 0:00:31]} 61. Rb8 {[%clk 0:00:06]}  b2 {[%clk 0:00:32]} 62. Rb7 {[%clk 0:00:07]}  Rg5 {[%clk 0:00:30]} 63. Rb8 {[%clk 0:00:06]}  Rxh5 {[%clk 0:00:31]} 64. Kxg7 {[%clk 0:00:06]}  Rh3 {[%clk 0:00:31]} 65. Kg6 {[%clk 0:00:06]}  Rc3 {[%clk 0:00:31]} 66. Rc8 {[%clk 0:00:05]}  Rxc8 {[%clk 0:00:30]} 67. Kh5 {[%clk 0:00:06]}  Kc2 {[%clk 0:00:31]} 68. Kg6 {[%clk 0:00:07]}  b1=Q {[%clk 0:00:31]} 69. Kh7 {[%clk 0:00:08]}  Qb7+ {[%clk 0:00:30]} 70. Kg6 {[%clk 0:00:08]}  Rc6+ {[%clk 0:00:31]} 71. Kh5 {[%clk 0:00:09]}  Qb5+ {[%clk 0:00:32]} 72. Kg4 {[%clk 0:00:08]}  Qg5+ {[%clk 0:00:32]} 73. Kf3 {[%clk 0:00:09]}  Rc3+ {[%clk 0:00:33]} 74. Ke2 {[%clk 0:00:09]}  Re3+ {[%clk 0:00:33]} 75. Kf1 {[%clk 0:00:09]}  Qf4+ {[%clk 0:00:33]} 76. Kg2 {[%clk 0:00:09]}  Rg3+ {[%clk 0:00:34]} 77. Kh1 {[%clk 0:00:10]}  Qh4# {[%clk 0:00:35]} 0-1


[Site "https://www.chess.com"]

[Event "Titled Tuesday Blitz August 09 Early 2022"]
[White "Belozerov, Andrei"]
[Black "Zaloznyy, Mike"]
[WhiteFideId "4120213"]
[BlackFideId "2023075"]
[WhiteElo "2320"]
[BlackElo "2003"]
[Result "0-1"]
[Round "01"]
[TimeControl "180+1"]
[Date "2022.08.09"]
[WhiteClock "0:00:16"]
[BlackClock "0:00:04"]

1. e4 {[%clk 0:02:59]}  c6 {[%clk 0:02:54]} 2. d4 {[%clk 0:02:59]}  d5 {[%clk 0:02:54]} 3. Nd2 {[%clk 0:02:59]}  dxe4 {[%clk 0:02:55]} 4. Nxe4 {[%clk 0:03:00]}  Nf6 {[%clk 0:02:55]} 5. Nxf6+ {[%clk 0:02:59]}  exf6 {[%clk 0:02:56]} 6. c3 {[%clk 0:02:58]}  Bd6 {[%clk 0:02:56]} 7. Bd3 {[%clk 0:02:58]}  O-O {[%clk 0:02:56]} 8. Qc2 {[%clk 0:02:59]}  Re8+ {[%clk 0:02:56]} 9. Ne2 {[%clk 0:02:59]}  h5 {[%clk 0:02:56]} 10. O-O {[%clk 0:02:56]}  h4 {[%clk 0:02:56]} 11. Nf4 {[%clk 0:02:44]}  Nd7 {[%clk 0:02:37]} 12. Bd2 {[%clk 0:02:37]}  Nf8 {[%clk 0:02:30]} 13. Rae1 {[%clk 0:02:36]}  Rxe1 {[%clk 0:02:22]} 14. Rxe1 {[%clk 0:02:36]}  Qc7 {[%clk 0:02:07]} 15. g3 {[%clk 0:02:34]}  Ne6 {[%clk 0:02:05]} 16. Nxe6 {[%clk 0:01:57]}  Bxe6 {[%clk 0:01:59]} 17. Bh7+ {[%clk 0:01:53]}  Kf8 {[%clk 0:01:28]} 18. Bf5 {[%clk 0:01:51]}  hxg3 {[%clk 0:01:28]} 19. hxg3 {[%clk 0:01:49]}  Bxg3 {[%clk 0:01:27]} 20. Bxe6 {[%clk 0:01:42]}  fxe6 {[%clk 0:01:09]} 21. Qh7 {[%clk 0:01:00]}  Re8 {[%clk 0:00:56]} 22. Qh8+ {[%clk 0:00:55]}  Kf7 {[%clk 0:00:51]} 23. Qh5+ {[%clk 0:00:39]}  Kf8 {[%clk 0:00:26]} 24. fxg3 {[%clk 0:00:36]}  Qxg3+ {[%clk 0:00:27]} 25. Kf1 {[%clk 0:00:36]}  g6 {[%clk 0:00:15]} 26. Qh6+ {[%clk 0:00:28]}  Ke7 {[%clk 0:00:14]} 27. Qg7+ {[%clk 0:00:26]}  Kd6 {[%clk 0:00:10]} 28. Qxf6 {[%clk 0:00:26]}  Qh3+ {[%clk 0:00:09]} 29. Ke2 {[%clk 0:00:25]}  Kc7 {[%clk 0:00:06]} 30. Bf4+ {[%clk 0:00:22]}  Kb6 {[%clk 0:00:06]} 31. Qe5 {[%clk 0:00:22]}  Qg2+ {[%clk 0:00:05]} 32. Kd3 {[%clk 0:00:20]}  Qxb2 {[%clk 0:00:06]} 33. Qc5+ {[%clk 0:00:19]}  Ka6 {[%clk 0:00:04]} 34. Qc4+ {[%clk 0:00:19]}  Qb5 {[%clk 0:00:04]} 35. a4 {[%clk 0:00:16]}  Qxc4+ {[%clk 0:00:04]} 0-1


[Site "https://www.chess.com"]

[Event "Titled Tuesday Blitz August 09 Early 2022"]
[White "Bintang, Rasyid A. Hidayat"]
[Black "Calugar, Arthur"]
[WhiteFideId "7105355"]
[BlackFideId "2606933"]
[WhiteElo "2368"]
[BlackElo "2312"]
[Result "0-1"]
[Round "01"]
[TimeControl "180+1"]
[Date "2022.08.09"]
[WhiteClock "0:00:01"]
[BlackClock "0:00:11"]

1. d4 {[%clk 0:03:00]}  Nf6 {[%clk 0:02:59]} 2. Bf4 {[%clk 0:03:01]}  g6 {[%clk 0:02:59]} 3. Nc3 {[%clk 0:03:00]}  d5 {[%clk 0:02:59]} 4. e3 {[%clk 0:03:01]}  a6 {[%clk 0:03:00]} 5. h4 {[%clk 0:02:58]}  h5 {[%clk 0:03:00]} 6. a4 {[%clk 0:02:57]}  Bg7 {[%clk 0:03:00]} 7. Nf3 {[%clk 0:02:56]}  O-O {[%clk 0:03:00]} 8. Ne5 {[%clk 0:02:56]}  Re8 {[%clk 0:03:00]} 9. Qd2 {[%clk 0:02:50]}  c5 {[%clk 0:02:56]} 10. f3 {[%clk 0:02:50]}  Nc6 {[%clk 0:02:56]} 11. Be2 {[%clk 0:02:41]}  Qb6 {[%clk 0:02:52]} 12. dxc5 {[%clk 0:02:33]}  Qxc5 {[%clk 0:02:48]} 13. O-O {[%clk 0:02:26]}  d4 {[%clk 0:02:43]} 14. exd4 {[%clk 0:02:25]}  Nxd4 {[%clk 0:02:44]} 15. Kh2 {[%clk 0:02:23]}  Bf5 {[%clk 0:02:08]} 16. Bc4 {[%clk 0:02:14]}  Ne6 {[%clk 0:01:54]} 17. Bg3 {[%clk 0:02:08]}  Rad8 {[%clk 0:01:35]} 18. Qe2 {[%clk 0:02:07]}  Nd7 {[%clk 0:01:23]} 19. Nxd7 {[%clk 0:01:50]}  Rxd7 {[%clk 0:01:24]} 20. Bf2 {[%clk 0:01:50]}  Qc7+ {[%clk 0:01:19]} 21. Bg3 {[%clk 0:01:48]}  Qc5 {[%clk 0:01:14]} 22. Bf2 {[%clk 0:01:48]}  Qc6 {[%clk 0:01:14]} 23. Rad1 {[%clk 0:01:17]}  Rxd1 {[%clk 0:01:08]} 24. Rxd1 {[%clk 0:01:18]}  Rc8 {[%clk 0:01:08]} 25. Bd5 {[%clk 0:01:13]}  Qc7+ {[%clk 0:01:04]} 26. Bg3 {[%clk 0:01:12]}  Qb6 {[%clk 0:01:05]} 27. Bb3 {[%clk 0:01:03]}  Nd4 {[%clk 0:00:43]} 28. Qxe7 {[%clk 0:00:48]}  Nxb3 {[%clk 0:00:41]} 29. cxb3 {[%clk 0:00:48]}  Qxb3 {[%clk 0:00:40]} 30. Rd8+ {[%clk 0:00:38]}  Rxd8 {[%clk 0:00:39]} 31. Qxd8+ {[%clk 0:00:39]}  Kh7 {[%clk 0:00:39]} 32. Nd5 {[%clk 0:00:20]}  Qd3 {[%clk 0:00:18]} 33. Nf6+ {[%clk 0:00:17]}  Bxf6 {[%clk 0:00:15]} 34. Qxf6 {[%clk 0:00:17]}  Kg8 {[%clk 0:00:06]} 35. Be5 {[%clk 0:00:16]}  Kf8 {[%clk 0:00:06]} 36. Bd6+ {[%clk 0:00:14]}  Kg8 {[%clk 0:00:07]} 37. Qd8+ {[%clk 0:00:11]}  Kh7 {[%clk 0:00:07]} 38. Qf6 {[%clk 0:00:10]}  Kg8 {[%clk 0:00:07]} 39. Bf4 {[%clk 0:00:09]}  Kf8 {[%clk 0:00:06]} 40. Bh6+ {[%clk 0:00:08]}  Ke8 {[%clk 0:00:07]} 41. Bg5 {[%clk 0:00:07]}  Kd7 {[%clk 0:00:07]} 42. Qe7+ {[%clk 0:00:05]}  Kc6 {[%clk 0:00:07]} 43. Qf6+ {[%clk 0:00:04]}  Qd6+ {[%clk 0:00:07]} 44. Qxd6+ {[%clk 0:00:02]}  Kxd6 {[%clk 0:00:08]} 45. Bf4+ {[%clk 0:00:02]}  Kc5 {[%clk 0:00:09]} 46. Bd2 {[%clk 0:00:01]}  Kc4 {[%clk 0:00:10]} 47. b4 {[%clk 0:00:01]}  Kb3 {[%clk 0:00:11]} 0-1


[Site "https://www.chess.com"]

[Event "Titled Tuesday Blitz August 09 Early 2022"]
[White "Bortnyk, Olexandr"]
[Black "Sellitti, Federico"]
[WhiteFideId "14120828"]
[BlackFideId "821829"]
[WhiteElo "2723"]
[BlackElo "2518"]
[Result "1-0"]
[Round "01"]
[TimeControl "180+1"]
[Date "2022.08.09"]
[WhiteClock "0:01:11"]
[BlackClock "0:00:04"]

1. d4 {[%clk 0:03:00]}  d5 {[%clk 0:02:58]} 2. Nc3 {[%clk 0:03:01]}  c5 {[%clk 0:02:53]} 3. e4 {[%clk 0:02:59]}  dxe4 {[%clk 0:02:29]} 4. d5 {[%clk 0:03:00]}  Nf6 {[%clk 0:02:29]} 5. Bf4 {[%clk 0:02:58]}  g6 {[%clk 0:02:16]} 6. Nge2 {[%clk 0:02:50]}  Bg7 {[%clk 0:02:15]} 7. Ng3 {[%clk 0:02:51]}  O-O {[%clk 0:01:58]} 8. Qd2 {[%clk 0:02:50]}  Nbd7 {[%clk 0:01:53]} 9. O-O-O {[%clk 0:02:49]}  Qa5 {[%clk 0:01:44]} 10. Kb1 {[%clk 0:02:48]}  Nb6 {[%clk 0:01:36]} 11. Qe1 {[%clk 0:02:46]}  Bg4 {[%clk 0:01:28]} 12. Be2 {[%clk 0:02:30]}  Bxe2 {[%clk 0:01:28]} 13. Qxe2 {[%clk 0:02:29]}  Rfd8 {[%clk 0:01:26]} 14. Bd2 {[%clk 0:02:11]}  Na4 {[%clk 0:00:39]} 15. Qc4 {[%clk 0:02:09]}  Nxc3+ {[%clk 0:00:33]} 16. Bxc3 {[%clk 0:02:10]}  Qa6 {[%clk 0:00:28]} 17. Qxa6 {[%clk 0:02:08]}  bxa6 {[%clk 0:00:29]} 18. Bxf6 {[%clk 0:02:08]}  Bxf6 {[%clk 0:00:29]} 19. Nxe4 {[%clk 0:02:09]}  Be5 {[%clk 0:00:27]} 20. Nxc5 {[%clk 0:02:08]}  Rab8 {[%clk 0:00:24]} 21. b3 {[%clk 0:02:07]}  a5 {[%clk 0:00:22]} 22. c4 {[%clk 0:01:58]}  Bg7 {[%clk 0:00:13]} 23. Kc2 {[%clk 0:01:57]}  Rdc8 {[%clk 0:00:12]} 24. Na4 {[%clk 0:01:56]}  Rb4 {[%clk 0:00:12]} 25. Rhe1 {[%clk 0:01:56]}  Bf6 {[%clk 0:00:08]} 26. d6 {[%clk 0:01:54]}  exd6 {[%clk 0:00:07]} 27. Rxd6 {[%clk 0:01:55]}  Kg7 {[%clk 0:00:08]} 28. Rd7 {[%clk 0:01:53]}  Rcxc4+ {[%clk 0:00:07]} 29. bxc4 {[%clk 0:01:53]}  Rxa4 {[%clk 0:00:08]} 30. Kd3 {[%clk 0:01:43]}  Rxa2 {[%clk 0:00:08]} 31. c5 {[%clk 0:01:42]}  Ra3+ {[%clk 0:00:06]} 32. Kc4 {[%clk 0:01:42]}  Rc3+ {[%clk 0:00:06]} 33. Kb5 {[%clk 0:01:42]}  a4 {[%clk 0:00:06]} 34. Rxa7 {[%clk 0:01:35]}  Bd4 {[%clk 0:00:04]} 35. Rc7 {[%clk 0:01:14]}  a3 {[%clk 0:00:04]} 36. Re2 {[%clk 0:01:13]}  Rb3+ {[%clk 0:00:03]} 37. Kc4 {[%clk 0:01:12]}  Rb2 {[%clk 0:00:04]} 38. Rxb2 {[%clk 0:01:11]}  axb2 {[%clk 0:00:04]} 39. Rb7 {[%clk 0:01:11]} 1-0


[Site "https://www.chess.com"]

[Event "Titled Tuesday Blitz August 09 Early 2022"]
[White "Bristy, Mukherjee"]
[Black "Stoleriu, George"]
[WhiteFideId "25077325"]
[BlackFideId "1227505"]
[WhiteElo "1661"]
[BlackElo "2194"]
[Result "1-0"]
[Round "01"]
[TimeControl "180+1"]
[Date "2022.08.09"]
[WhiteClock "0:01:05"]
[BlackClock "0:00:04"]

1. d4 {[%clk 0:02:57]}  e6 {[%clk 0:02:59]} 2. c3 {[%clk 0:02:56]}  Nf6 {[%clk 0:02:58]} 3. Bg5 {[%clk 0:02:53]}  h6 {[%clk 0:02:56]} 4. Bh4 {[%clk 0:02:52]}  b6 {[%clk 0:02:56]} 5. Nd2 {[%clk 0:02:50]}  Bb7 {[%clk 0:02:56]} 6. Ngf3 {[%clk 0:02:49]}  d6 {[%clk 0:02:55]} 7. e3 {[%clk 0:02:49]}  Nbd7 {[%clk 0:02:55]} 8. Bd3 {[%clk 0:02:48]}  g5 {[%clk 0:02:52]} 9. Bg3 {[%clk 0:02:47]}  Bg7 {[%clk 0:02:53]} 10. h4 {[%clk 0:02:47]}  g4 {[%clk 0:02:53]} 11. Nh2 {[%clk 0:02:47]}  h5 {[%clk 0:02:53]} 12. Rg1 {[%clk 0:02:43]}  Qe7 {[%clk 0:02:52]} 13. Qa4 {[%clk 0:02:41]}  O-O {[%clk 0:02:42]} 14. f3 {[%clk 0:02:36]}  e5 {[%clk 0:02:41]} 15. O-O-O {[%clk 0:02:30]}  Nd5 {[%clk 0:02:38]} 16. Rde1 {[%clk 0:02:26]}  f5 {[%clk 0:02:37]} 17. fxg4 {[%clk 0:02:17]}  hxg4 {[%clk 0:02:32]} 18. e4 {[%clk 0:02:15]}  Nf4 {[%clk 0:02:10]} 19. Bxf4 {[%clk 0:02:11]}  exf4 {[%clk 0:02:11]} 20. exf5 {[%clk 0:02:12]}  Qxh4 {[%clk 0:01:37]} 21. Qxd7 {[%clk 0:02:10]}  Qxh2 {[%clk 0:01:35]} 22. Bc4+ {[%clk 0:01:50]}  d5 {[%clk 0:01:28]} 23. Bxd5+ {[%clk 0:01:43]}  Bxd5 {[%clk 0:01:29]} 24. Qxd5+ {[%clk 0:01:43]}  Rf7 {[%clk 0:01:16]} 25. Qxa8+ {[%clk 0:01:43]}  Bf8 {[%clk 0:01:17]} 26. Rh1 {[%clk 0:01:32]}  Qg3 {[%clk 0:01:16]} 27. Ne4 {[%clk 0:01:29]}  Qd3 {[%clk 0:01:12]} 28. Ng5 {[%clk 0:01:26]}  Rxf5 {[%clk 0:01:06]} 29. Ne6 {[%clk 0:01:11]}  Qc4 {[%clk 0:00:09]} 30. Nxf8 {[%clk 0:01:08]}  Kf7 {[%clk 0:00:05]} 31. Qe8+ {[%clk 0:01:06]}  Kg7 {[%clk 0:00:04]} 32. Qg6+ {[%clk 0:01:05]}  Kxf8 {[%clk 0:00:04]} 33. Rh8+ {[%clk 0:01:05]} 1-0


[Site "https://www.chess.com"]

[Event "Titled Tuesday Blitz August 09 Early 2022"]
[White "Chernomordik, Pavel"]
[Black "Bryakin, Mikhail"]
[WhiteFideId "2804530"]
[BlackFideId "4165314"]
[WhiteElo "2217"]
[BlackElo "2353"]
[Result "0-1"]
[Round "01"]
[TimeControl "180+1"]
[Date "2022.08.09"]
[WhiteClock "0:00:01"]
[BlackClock "0:00:04"]

1. e4 {[%clk 0:03:00]}  Nf6 {[%clk 0:02:57]} 2. Nc3 {[%clk 0:03:00]}  d6 {[%clk 0:02:51]} 3. d4 {[%clk 0:02:59]}  g6 {[%clk 0:02:52]} 4. Bg5 {[%clk 0:02:57]}  Bg7 {[%clk 0:02:52]} 5. Qd2 {[%clk 0:02:57]}  c6 {[%clk 0:02:44]} 6. O-O-O {[%clk 0:02:50]}  Qa5 {[%clk 0:02:42]} 7. Kb1 {[%clk 0:02:46]}  h6 {[%clk 0:02:35]} 8. Bh4 {[%clk 0:02:38]}  Nbd7 {[%clk 0:02:32]} 9. f4 {[%clk 0:02:38]}  e5 {[%clk 0:02:31]} 10. fxe5 {[%clk 0:02:25]}  dxe5 {[%clk 0:02:30]} 11. Nf3 {[%clk 0:02:22]}  O-O {[%clk 0:02:16]} 12. dxe5 {[%clk 0:02:06]}  Nxe5 {[%clk 0:01:50]} 13. Bxf6 {[%clk 0:01:53]}  Bxf6 {[%clk 0:01:38]} 14. Nd5 {[%clk 0:01:51]}  Qxd2 {[%clk 0:01:31]} 15. Nxf6+ {[%clk 0:01:49]}  Kg7 {[%clk 0:01:32]} 16. Nh5+ {[%clk 0:01:39]}  gxh5 {[%clk 0:01:32]} 17. Rxd2 {[%clk 0:01:37]}  Ng6 {[%clk 0:01:32]} 18. Bd3 {[%clk 0:01:29]}  Be6 {[%clk 0:01:20]} 19. Rf1 {[%clk 0:01:27]}  Rad8 {[%clk 0:01:16]} 20. Rdf2 {[%clk 0:01:17]}  c5 {[%clk 0:01:05]} 21. e5 {[%clk 0:01:08]}  b6 {[%clk 0:00:12]} 22. Be4 {[%clk 0:01:02]}  Ne7 {[%clk 0:00:10]} 23. c3 {[%clk 0:00:43]}  Nd5 {[%clk 0:00:10]} 24. Nh4 {[%clk 0:00:39]}  Ne3 {[%clk 0:00:10]} 25. Re1 {[%clk 0:00:38]}  Ng4 {[%clk 0:00:10]} 26. Nf5+ {[%clk 0:00:25]}  Kh8 {[%clk 0:00:10]} 27. Rf4 {[%clk 0:00:19]}  Nxe5 {[%clk 0:00:06]} 28. Nxh6 {[%clk 0:00:18]}  Ng4 {[%clk 0:00:03]} 29. Nxg4 {[%clk 0:00:15]}  hxg4 {[%clk 0:00:04]} 30. Bf5 {[%clk 0:00:13]}  Bxf5+ {[%clk 0:00:05]} 31. Rxf5 {[%clk 0:00:13]}  Rd2 {[%clk 0:00:06]} 32. Ree5 {[%clk 0:00:10]}  Rxg2 {[%clk 0:00:04]} 33. Rg5 {[%clk 0:00:06]}  f6 {[%clk 0:00:03]} 34. Rh5+ {[%clk 0:00:06]}  Kg7 {[%clk 0:00:03]} 35. Re7+ {[%clk 0:00:06]}  Kg6 {[%clk 0:00:04]} 36. Rhh7 {[%clk 0:00:05]}  Rd8 {[%clk 0:00:04]} 37. Rhg7+ {[%clk 0:00:01]}  Kf5 {[%clk 0:00:04]} 0-1


[Site "https://www.chess.com"]

[Event "Titled Tuesday Blitz August 09 Early 2022"]
[White "Dev, Shah"]
[Black "Orzech, Dominik"]
[WhiteFideId "35019058"]
[BlackFideId "1115065"]
[WhiteElo "2048"]
[BlackElo "2272"]
[Result "1-0"]
[Round "01"]
[TimeControl "180+1"]
[Date "2022.08.09"]
[WhiteClock "0:00:13"]
[BlackClock "0:00:10"]

1. d4 {[%clk 0:03:00]}  f6 {[%clk 0:02:56]} 2. e4 {[%clk 0:02:58]}  e6 {[%clk 0:02:53]} 3. c4 {[%clk 0:02:49]}  d5 {[%clk 0:02:48]} 4. cxd5 {[%clk 0:02:47]}  exd5 {[%clk 0:02:48]} 5. Qh5+ {[%clk 0:02:44]}  g6 {[%clk 0:02:44]} 6. Qxd5 {[%clk 0:02:45]}  Qe7 {[%clk 0:02:44]} 7. Nc3 {[%clk 0:02:41]}  Nc6 {[%clk 0:02:42]} 8. Bb5 {[%clk 0:02:37]}  Bd7 {[%clk 0:02:42]} 9. Be3 {[%clk 0:02:23]}  O-O-O {[%clk 0:02:41]} 10. Qb3 {[%clk 0:02:15]}  Be6 {[%clk 0:02:13]} 11. d5 {[%clk 0:02:11]}  Bf7 {[%clk 0:02:06]} 12. Qa4 {[%clk 0:02:03]}  Nb4 {[%clk 0:02:03]} 13. Qxa7 {[%clk 0:02:00]}  c6 {[%clk 0:01:52]} 14. Qa8+ {[%clk 0:01:58]}  Kc7 {[%clk 0:01:49]} 15. Bf4+ {[%clk 0:01:52]}  Kb6 {[%clk 0:01:48]} 16. Be3+ {[%clk 0:01:46]}  Kc7 {[%clk 0:01:46]} 17. Qa5+ {[%clk 0:01:44]}  Kc8 {[%clk 0:01:40]} 18. dxc6 {[%clk 0:01:29]}  Nc2+ {[%clk 0:01:22]} 19. Ke2 {[%clk 0:01:23]}  Nxa1 {[%clk 0:01:22]} 20. cxb7+ {[%clk 0:00:52]}  Qxb7 {[%clk 0:01:14]} 21. Ba6 {[%clk 0:00:53]}  Bc4+ {[%clk 0:01:08]} 22. Bxc4 {[%clk 0:00:53]}  Bb4 {[%clk 0:01:04]} 23. Qa4 {[%clk 0:00:45]}  Kb8 {[%clk 0:01:00]} 24. Nb5 {[%clk 0:00:34]}  Ne7 {[%clk 0:00:57]} 25. Bf4+ {[%clk 0:00:31]}  Kc8 {[%clk 0:00:57]} 26. Be6+ {[%clk 0:00:30]}  Rd7 {[%clk 0:00:55]} 27. Qxb4 {[%clk 0:00:27]}  Kd8 {[%clk 0:00:47]} 28. Bxd7 {[%clk 0:00:27]}  Qxd7 {[%clk 0:00:45]} 29. Nf3 {[%clk 0:00:24]}  Nc2 {[%clk 0:00:43]} 30. Qc5 {[%clk 0:00:19]}  Ke8 {[%clk 0:00:26]} 31. Nd6+ {[%clk 0:00:18]}  Kf8 {[%clk 0:00:26]} 32. Qxc2 {[%clk 0:00:18]}  Kg7 {[%clk 0:00:25]} 33. Rd1 {[%clk 0:00:18]}  Qa7 {[%clk 0:00:22]} 34. Kf1 {[%clk 0:00:17]}  Ra8 {[%clk 0:00:19]} 35. e5 {[%clk 0:00:16]}  f5 {[%clk 0:00:18]} 36. Kg1 {[%clk 0:00:15]}  Qa6 {[%clk 0:00:18]} 37. e6 {[%clk 0:00:13]}  Qxa2 {[%clk 0:00:17]} 38. Qc3+ {[%clk 0:00:13]}  Kg8 {[%clk 0:00:17]} 39. Qf6 {[%clk 0:00:14]}  Nc6 {[%clk 0:00:10]} 40. Qf7+ {[%clk 0:00:13]}  Kh8 {[%clk 0:00:10]} 41. Ng5 {[%clk 0:00:13]} 1-0


[Site "https://www.chess.com"]

[Event "Titled Tuesday Blitz August 09 Early 2022"]
[White "Devaev, Alexander"]
[Black "Boros, Denes"]
[WhiteFideId "4169395"]
[BlackFideId "722340"]
[WhiteElo "2185"]
[BlackElo "2464"]
[Result "1-0"]
[Round "01"]
[TimeControl "180+1"]
[Date "2022.08.09"]
[WhiteClock "0:00:51"]
[BlackClock "0:01:32"]

1. d4 {[%clk 0:02:57]}  c6 {[%clk 0:03:00]} 2. c4 {[%clk 0:02:55]}  Nf6 {[%clk 0:03:01]} 3. Nf3 {[%clk 0:02:55]}  d6 {[%clk 0:03:01]} 4. Nc3 {[%clk 0:02:56]}  Bf5 {[%clk 0:03:01]} 5. Nh4 {[%clk 0:02:55]}  Bg4 {[%clk 0:03:00]} 6. h3 {[%clk 0:02:53]}  Bd7 {[%clk 0:03:01]} 7. Nf3 {[%clk 0:02:53]}  Qc7 {[%clk 0:02:59]} 8. e4 {[%clk 0:02:52]}  e5 {[%clk 0:03:00]} 9. d5 {[%clk 0:02:53]}  Be7 {[%clk 0:03:00]} 10. Be3 {[%clk 0:02:53]}  Na6 {[%clk 0:03:00]} 11. Be2 {[%clk 0:02:53]}  O-O {[%clk 0:03:00]} 12. O-O {[%clk 0:02:50]}  Kh8 {[%clk 0:02:58]} 13. a3 {[%clk 0:02:47]}  Rfe8 {[%clk 0:02:51]} 14. Nd2 {[%clk 0:02:47]}  Bf8 {[%clk 0:02:51]} 15. Rc1 {[%clk 0:02:38]}  c5 {[%clk 0:02:47]} 16. Rb1 {[%clk 0:02:37]}  g6 {[%clk 0:02:47]} 17. b4 {[%clk 0:02:34]}  Bg7 {[%clk 0:02:47]} 18. Nb5 {[%clk 0:02:11]}  Qb8 {[%clk 0:02:45]} 19. Qc2 {[%clk 0:02:02]}  b6 {[%clk 0:02:43]} 20. Nc3 {[%clk 0:01:59]}  Ng8 {[%clk 0:02:39]} 21. Bg4 {[%clk 0:01:43]}  Qc8 {[%clk 0:02:15]} 22. Bxd7 {[%clk 0:01:40]}  Qxd7 {[%clk 0:02:16]} 23. bxc5 {[%clk 0:01:36]}  Nxc5 {[%clk 0:02:12]} 24. Bxc5 {[%clk 0:01:36]}  dxc5 {[%clk 0:02:12]} 25. a4 {[%clk 0:01:36]}  Ne7 {[%clk 0:02:04]} 26. a5 {[%clk 0:01:35]}  Nc8 {[%clk 0:02:04]} 27. Rb3 {[%clk 0:01:31]}  Bh6 {[%clk 0:02:03]} 28. Rfb1 {[%clk 0:01:31]}  Nd6 {[%clk 0:02:00]} 29. axb6 {[%clk 0:01:21]}  axb6 {[%clk 0:01:59]} 30. Nb5 {[%clk 0:01:10]}  Bxd2 {[%clk 0:01:52]} 31. Nxd6 {[%clk 0:01:11]}  Qxd6 {[%clk 0:01:52]} 32. Rxb6 {[%clk 0:01:03]}  Qd7 {[%clk 0:01:45]} 33. Qxd2 {[%clk 0:01:03]}  Qa4 {[%clk 0:01:46]} 34. Qc3 {[%clk 0:00:59]}  Kg8 {[%clk 0:01:41]} 35. R6b5 {[%clk 0:00:55]}  Rac8 {[%clk 0:01:32]} 36. Ra1 {[%clk 0:00:51]} 1-0


[Site "https://www.chess.com"]